[Event "Early Titled Tuesday Blitz | February 8 2022"]
[White "Farmani Anosheh, Armin"]
[Black "Berdychevskaya, Natasha"]
[WhiteFideId "24613240"]
[BlackFideId "4159322"]
[WhiteElo "2289"]
[BlackElo "1780"]
[Result "0-1"]
[Round "08"]
[TimeControl "180+1"]
[Date "2022.02.08"]
[WhiteClock "0:00:06"]
[BlackClock "0:00:53"]

1. e4 {[%clk 0:03:00]}  e5 {[%clk 0:02:59]} 2. Nf3 {[%clk 0:03:01]}  Nf6 {[%clk 0:02:58]} 3. Nc3 {[%clk 0:02:59]}  Nc6 {[%clk 0:02:58]} 4. d4 {[%clk 0:02:59]}  Bb4 {[%clk 0:02:56]} 5. dxe5 {[%clk 0:02:06]}  Nxe4 {[%clk 0:02:54]} 6. Qd3 {[%clk 0:02:00]}  d5 {[%clk 0:02:50]} 7. exd6 {[%clk 0:01:49]}  O-O {[%clk 0:02:40]} 8. Be3 {[%clk 0:01:18]}  Bf5 {[%clk 0:02:32]} 9. Qc4 {[%clk 0:00:52]}  Nxd6 {[%clk 0:02:22]} 10. Qf4 {[%clk 0:00:47]}  Qf6 {[%clk 0:02:11]} 11. Bd3 {[%clk 0:00:13]}  Bxc3+ {[%clk 0:02:09]} 12. bxc3 {[%clk 0:00:13]}  Qxc3+ {[%clk 0:02:08]} 13. Ke2 {[%clk 0:00:13]}  Bxd3+ {[%clk 0:02:00]} 14. cxd3 {[%clk 0:00:14]}  Rfe8 {[%clk 0:01:51]} 15. Rhc1 {[%clk 0:00:14]}  Qa5 {[%clk 0:01:33]} 16. Kf1 {[%clk 0:00:12]}  Qf5 {[%clk 0:01:25]} 17. Rd1 {[%clk 0:00:10]}  Rad8 {[%clk 0:01:11]} 18. Rab1 {[%clk 0:00:09]}  b6 {[%clk 0:01:04]} 19. Rbc1 {[%clk 0:00:08]}  Ne7 {[%clk 0:00:59]} 20. Rxc7 {[%clk 0:00:07]}  Nd5 {[%clk 0:00:53]} 21. Qxf5 {[%clk 0:00:06]}  Nxf5 {[%clk 0:00:53]} 0-1


[Site "https://www.chess.com"]

[Event "Early Titled Tuesday Blitz | February 8 2022"]
[White "Fawole, John Oyeyemi"]
[Black "Tuleyeva-Aketayeva, Dana"]
[WhiteFideId "8501319"]
[BlackFideId "13701932"]
[WhiteElo "2091"]
[BlackElo "1944"]
[Result "1/2-1/2"]
[Round "08"]
[TimeControl "180+1"]
[Date "2022.02.08"]
[WhiteClock "0:00:06"]
[BlackClock "0:00:02"]

1. e4 {[%clk 0:03:00]}  c5 {[%clk 0:03:00]} 2. Nf3 {[%clk 0:02:59]}  Nc6 {[%clk 0:03:00]} 3. d4 {[%clk 0:02:58]}  cxd4 {[%clk 0:03:00]} 4. Nxd4 {[%clk 0:02:58]}  g6 {[%clk 0:03:01]} 5. Nc3 {[%clk 0:02:57]}  Bg7 {[%clk 0:03:01]} 6. Be3 {[%clk 0:02:57]}  Nf6 {[%clk 0:02:59]} 7. Be2 {[%clk 0:02:57]}  O-O {[%clk 0:02:59]} 8. O-O {[%clk 0:02:57]}  d6 {[%clk 0:02:59]} 9. Kh1 {[%clk 0:02:55]}  Bd7 {[%clk 0:02:58]} 10. f4 {[%clk 0:02:54]}  Rc8 {[%clk 0:02:55]} 11. Bf3 {[%clk 0:02:52]}  Na5 {[%clk 0:02:50]} 12. e5 {[%clk 0:02:40]}  Ne8 {[%clk 0:02:48]} 13. exd6 {[%clk 0:02:28]}  Nxd6 {[%clk 0:02:45]} 14. Re1 {[%clk 0:02:08]}  Nac4 {[%clk 0:02:43]} 15. Bg1 {[%clk 0:02:06]}  Nxb2 {[%clk 0:02:40]} 16. Qd2 {[%clk 0:02:04]}  Qa5 {[%clk 0:02:31]} 17. Rab1 {[%clk 0:01:42]}  Qxc3 {[%clk 0:02:08]} 18. Qxc3 {[%clk 0:01:40]}  Rxc3 {[%clk 0:02:08]} 19. Rxb2 {[%clk 0:01:22]}  Rc4 {[%clk 0:02:01]} 20. Rxe7 {[%clk 0:01:11]}  Bxd4 {[%clk 0:01:36]} 21. Bxd4 {[%clk 0:01:08]}  Rxd4 {[%clk 0:01:36]} 22. Rxd7 {[%clk 0:01:08]}  Re8 {[%clk 0:01:37]} 23. h3 {[%clk 0:00:59]}  b6 {[%clk 0:01:34]} 24. Kh2 {[%clk 0:00:54]}  Nf5 {[%clk 0:01:28]} 25. Rxa7 {[%clk 0:00:46]}  Rd2 {[%clk 0:01:15]} 26. Rxb6 {[%clk 0:00:37]}  Re3 {[%clk 0:01:13]} 27. Rb3 {[%clk 0:00:28]}  Rxc2 {[%clk 0:01:07]} 28. Rxe3 {[%clk 0:00:23]}  Nxe3 {[%clk 0:01:07]} 29. a4 {[%clk 0:00:20]}  Nf1+ {[%clk 0:01:06]} 30. Kg1 {[%clk 0:00:19]}  Nd2 {[%clk 0:01:04]} 31. Bb7 {[%clk 0:00:17]}  Nc4 {[%clk 0:00:59]} 32. a5 {[%clk 0:00:17]}  Ra2 {[%clk 0:00:51]} 33. a6 {[%clk 0:00:16]}  Nb6 {[%clk 0:00:43]} 34. Bc6 {[%clk 0:00:14]}  Rc2 {[%clk 0:00:34]} 35. Bb5 {[%clk 0:00:14]}  Rb2 {[%clk 0:00:31]} 36. Rb7 {[%clk 0:00:13]}  Rxb5 {[%clk 0:00:28]} 37. a7 {[%clk 0:00:11]}  Rb1+ {[%clk 0:00:23]} 38. Kh2 {[%clk 0:00:11]}  Ra1 {[%clk 0:00:19]} 39. Rxb6 {[%clk 0:00:11]}  Rxa7 {[%clk 0:00:18]} 40. Rb8+ {[%clk 0:00:10]}  Kg7 {[%clk 0:00:18]} 41. Kg3 {[%clk 0:00:10]}  Ra3+ {[%clk 0:00:18]} 42. Kg4 {[%clk 0:00:10]}  h5+ {[%clk 0:00:13]} 43. Kh4 {[%clk 0:00:10]}  Ra4 {[%clk 0:00:10]} 44. g3 {[%clk 0:00:10]}  Ra5 {[%clk 0:00:09]} 45. Rb7 {[%clk 0:00:10]}  Rf5 {[%clk 0:00:09]} 46. Rc7 {[%clk 0:00:09]}  Rf6 {[%clk 0:00:08]} 47. Rc4 {[%clk 0:00:09]}  Rf5 {[%clk 0:00:08]} 48. g4 {[%clk 0:00:09]}  Rb5 {[%clk 0:00:07]} 49. Kg3 {[%clk 0:00:08]}  Kh6 {[%clk 0:00:06]} 50. Kh4 {[%clk 0:00:08]}  f6 {[%clk 0:00:06]} 51. Rc8 {[%clk 0:00:07]}  g5+ {[%clk 0:00:05]} 52. fxg5+ {[%clk 0:00:07]}  fxg5+ {[%clk 0:00:05]} 53. Kg3 {[%clk 0:00:08]}  h4+ {[%clk 0:00:04]} 54. Kg2 {[%clk 0:00:08]}  Rb2+ {[%clk 0:00:04]} 55. Kg1 {[%clk 0:00:08]}  Rb1+ {[%clk 0:00:04]} 56. Kg2 {[%clk 0:00:08]}  Rb2+ {[%clk 0:00:04]} 57. Kg1 {[%clk 0:00:08]}  Rb3 {[%clk 0:00:04]} 58. Kg2 {[%clk 0:00:08]}  Rg3+ {[%clk 0:00:04]} 59. Kh2 {[%clk 0:00:08]}  Rd3 {[%clk 0:00:04]} 60. Rc6+ {[%clk 0:00:08]}  Kg7 {[%clk 0:00:03]} 61. Rc5 {[%clk 0:00:08]}  Kg6 {[%clk 0:00:03]} 62. Rc6+ {[%clk 0:00:08]}  Kf7 {[%clk 0:00:03]} 63. Rc5 {[%clk 0:00:08]}  Kf6 {[%clk 0:00:03]} 64. Rf5+ {[%clk 0:00:07]}  Kg6 {[%clk 0:00:03]} 65. Ra5 {[%clk 0:00:07]}  Rd2+ {[%clk 0:00:02]} 66. Kh1 {[%clk 0:00:06]}  Rd1+ {[%clk 0:00:02]} 67. Kh2 {[%clk 0:00:07]}  Rd2+ {[%clk 0:00:03]} 68. Kh1 {[%clk 0:00:07]}  Rd1+ {[%clk 0:00:04]} 69. Kh2 {[%clk 0:00:07]}  Rd6 {[%clk 0:00:04]} 70. Rb5 {[%clk 0:00:07]}  Re6 {[%clk 0:00:05]} 71. Ra5 {[%clk 0:00:07]}  Rf6 {[%clk 0:00:05]} 72. Rb5 {[%clk 0:00:07]}  Rf2+ {[%clk 0:00:05]} 73. Kh1 {[%clk 0:00:07]}  Rf3 {[%clk 0:00:06]} 74. Kg2 {[%clk 0:00:07]}  Rg3+ {[%clk 0:00:06]} 75. Kh2 {[%clk 0:00:07]}  Rf3 {[%clk 0:00:06]} 76. Kg2 {[%clk 0:00:08]}  Rd3 {[%clk 0:00:06]} 77. Rb6+ {[%clk 0:00:08]}  Kf7 {[%clk 0:00:06]} 78. Rb5 {[%clk 0:00:08]}  Kg6 {[%clk 0:00:06]} 79. Rb6+ {[%clk 0:00:08]}  Kg7 {[%clk 0:00:06]} 80. Rb5 {[%clk 0:00:08]}  Rg3+ {[%clk 0:00:06]} 81. Kh2 {[%clk 0:00:08]}  Kg6 {[%clk 0:00:06]} 82. Rb6+ {[%clk 0:00:08]}  Kf7 {[%clk 0:00:07]} 83. Rb5 {[%clk 0:00:08]}  Kf6 {[%clk 0:00:05]} 84. Rf5+ {[%clk 0:00:08]}  Kg6 {[%clk 0:00:05]} 85. Rb5 {[%clk 0:00:08]}  Rf3 {[%clk 0:00:05]} 86. Rb6+ {[%clk 0:00:08]}  Rf6 {[%clk 0:00:05]} 87. Rb5 {[%clk 0:00:08]}  Re6 {[%clk 0:00:05]} 88. Rc5 {[%clk 0:00:08]}  Rd6 {[%clk 0:00:05]} 89. Rf5 {[%clk 0:00:08]}  Rd2+ {[%clk 0:00:04]} 90. Kh1 {[%clk 0:00:08]}  Rd1+ {[%clk 0:00:05]} 91. Kg2 {[%clk 0:00:08]}  Re1 {[%clk 0:00:04]} 92. Ra5 {[%clk 0:00:08]}  Re2+ {[%clk 0:00:05]} 93. Kg1 {[%clk 0:00:08]}  Re6 {[%clk 0:00:04]} 94. Rc5 {[%clk 0:00:07]}  Rf6 {[%clk 0:00:04]} 95. Kg2 {[%clk 0:00:07]}  Kh6 {[%clk 0:00:04]} 96. Rd5 {[%clk 0:00:07]}  Rg6 {[%clk 0:00:04]} 97. Rf5 {[%clk 0:00:07]}  Re6 {[%clk 0:00:04]} 98. Rf7 {[%clk 0:00:07]}  Kg6 {[%clk 0:00:03]} 99. Rf5 {[%clk 0:00:07]}  Re3 {[%clk 0:00:03]} 100. Kh2 {[%clk 0:00:06]}  Re2+ {[%clk 0:00:02]} 101. Kg1 {[%clk 0:00:06]}  Rd2 {[%clk 0:00:03]} 102. Kh1 {[%clk 0:00:06]}  Rd3 {[%clk 0:00:02]} 103. Kg2 {[%clk 0:00:06]}  Rg3+ {[%clk 0:00:02]} 1/2-1/2


[Site "https://www.chess.com"]

[Event "Early Titled Tuesday Blitz | February 8 2022"]
[White "Fier, Alexandr"]
[Black "Urazayev, Arystanbek"]
[WhiteFideId "2107139"]
[BlackFideId "13709810"]
[WhiteElo "2569"]
[BlackElo "2321"]
[Result "1-0"]
[Round "08"]
[TimeControl "180+1"]
[Date "2022.02.08"]
[WhiteClock "0:00:25"]
[BlackClock "0:00:07"]

1. d4 {[%clk 0:03:00]}  Nf6 {[%clk 0:03:00]} 2. Bg5 {[%clk 0:03:01]}  Ne4 {[%clk 0:03:00]} 3. Bf4 {[%clk 0:03:00]}  d5 {[%clk 0:02:59]} 4. e3 {[%clk 0:03:00]}  e6 {[%clk 0:02:57]} 5. Bd3 {[%clk 0:03:00]}  c5 {[%clk 0:02:56]} 6. Bxe4 {[%clk 0:02:59]}  dxe4 {[%clk 0:02:56]} 7. Nc3 {[%clk 0:03:00]}  cxd4 {[%clk 0:02:48]} 8. exd4 {[%clk 0:03:01]}  Nc6 {[%clk 0:02:47]} 9. Nge2 {[%clk 0:03:01]}  Bb4 {[%clk 0:02:45]} 10. O-O {[%clk 0:03:00]}  Bxc3 {[%clk 0:02:25]} 11. bxc3 {[%clk 0:02:51]}  O-O {[%clk 0:02:22]} 12. c4 {[%clk 0:02:51]}  e5 {[%clk 0:02:17]} 13. Bxe5 {[%clk 0:02:40]}  Nxe5 {[%clk 0:02:17]} 14. dxe5 {[%clk 0:02:41]}  Be6 {[%clk 0:02:18]} 15. Nf4 {[%clk 0:02:34]}  Bxc4 {[%clk 0:02:17]} 16. Re1 {[%clk 0:02:35]}  Qxd1 {[%clk 0:02:15]} 17. Raxd1 {[%clk 0:02:33]}  Bxa2 {[%clk 0:02:14]} 18. Rxe4 {[%clk 0:02:34]}  b5 {[%clk 0:02:12]} 19. Ra1 {[%clk 0:02:28]}  Bc4 {[%clk 0:02:10]} 20. Ra5 {[%clk 0:02:26]}  Rfd8 {[%clk 0:02:04]} 21. h4 {[%clk 0:02:19]}  Rd1+ {[%clk 0:02:01]} 22. Kh2 {[%clk 0:02:19]}  Rd2 {[%clk 0:02:02]} 23. Kg3 {[%clk 0:02:16]}  Rxc2 {[%clk 0:02:01]} 24. Rd4 {[%clk 0:02:15]}  g6 {[%clk 0:01:51]} 25. Rd7 {[%clk 0:02:13]}  b4 {[%clk 0:01:49]} 26. h5 {[%clk 0:01:51]}  g5 {[%clk 0:01:37]} 27. Nd5 {[%clk 0:01:46]}  Bxd5 {[%clk 0:01:34]} 28. Raxd5 {[%clk 0:01:47]}  b3 {[%clk 0:01:11]} 29. h6 {[%clk 0:01:47]}  Rcc8 {[%clk 0:01:10]} 30. Rb7 {[%clk 0:01:45]}  Rcb8 {[%clk 0:01:07]} 31. Rdb5 {[%clk 0:01:45]}  Rxb7 {[%clk 0:01:05]} 32. Rxb7 {[%clk 0:01:46]}  a5 {[%clk 0:01:05]} 33. Rxb3 {[%clk 0:01:47]}  a4 {[%clk 0:01:06]} 34. Ra3 {[%clk 0:01:48]}  Kf8 {[%clk 0:01:01]} 35. Kg4 {[%clk 0:01:48]}  Ra5 {[%clk 0:01:01]} 36. Kxg5 {[%clk 0:01:21]}  Rxe5+ {[%clk 0:01:01]} 37. Kf4 {[%clk 0:01:22]}  Ra5 {[%clk 0:00:59]} 38. g4 {[%clk 0:01:23]}  f6 {[%clk 0:00:58]} 39. g5 {[%clk 0:00:50]}  fxg5+ {[%clk 0:00:55]} 40. Kg4 {[%clk 0:00:50]}  Kf7 {[%clk 0:00:52]} 41. Kh5 {[%clk 0:00:51]}  Kf6 {[%clk 0:00:51]} 42. Rf3+ {[%clk 0:00:50]}  Ke5 {[%clk 0:00:48]} 43. Kg4 {[%clk 0:00:44]}  Kd4 {[%clk 0:00:41]} 44. Rf7 {[%clk 0:00:39]}  a3 {[%clk 0:00:38]} 45. Rxh7 {[%clk 0:00:39]}  a2 {[%clk 0:00:37]} 46. Rd7+ {[%clk 0:00:40]}  Ke5 {[%clk 0:00:35]} 47. h7 {[%clk 0:00:40]}  Ra8 {[%clk 0:00:17]} 48. Ra7 {[%clk 0:00:40]}  Rh8 {[%clk 0:00:06]} 49. Kxg5 {[%clk 0:00:40]}  Rxh7 {[%clk 0:00:06]} 50. f4+ {[%clk 0:00:39]}  Ke4 {[%clk 0:00:04]} 51. Ra4+ {[%clk 0:00:36]}  Kf3 {[%clk 0:00:02]} 52. f5 {[%clk 0:00:36]}  Rh2 {[%clk 0:00:02]} 53. f6 {[%clk 0:00:36]}  Rg2+ {[%clk 0:00:02]} 54. Kf5 {[%clk 0:00:32]}  Ke3 {[%clk 0:00:03]} 55. f7 {[%clk 0:00:31]}  Kd3 {[%clk 0:00:02]} 56. Ke6 {[%clk 0:00:30]}  Re2+ {[%clk 0:00:02]} 57. Kd7 {[%clk 0:00:30]}  Rf2 {[%clk 0:00:03]} 58. Ra3+ {[%clk 0:00:26]}  Kc4 {[%clk 0:00:03]} 59. Ke6 {[%clk 0:00:25]}  Kb4 {[%clk 0:00:03]} 60. Rxa2 {[%clk 0:00:25]}  Rxa2 {[%clk 0:00:04]} 61. f8=Q+ {[%clk 0:00:25]}  Kb3 {[%clk 0:00:04]} 62. Qg8 {[%clk 0:00:25]}  Rc2 {[%clk 0:00:05]} 63. Ke5+ {[%clk 0:00:25]}  Kb4 {[%clk 0:00:06]} 64. Kd4 {[%clk 0:00:25]}  Rd2+ {[%clk 0:00:06]} 65. Ke3 {[%clk 0:00:26]}  Rc2 {[%clk 0:00:07]} 66. Kd3 {[%clk 0:00:26]}  Rc5 {[%clk 0:00:07]} 67. Qb8+ {[%clk 0:00:26]}  Rb5 {[%clk 0:00:07]} 68. Qd6+ {[%clk 0:00:26]}  Ka5 {[%clk 0:00:07]} 69. Kc4 {[%clk 0:00:25]}  Rb6 {[%clk 0:00:07]} 70. Qa3# {[%clk 0:00:25]} 1-0


[Site "https://www.chess.com"]

[Event "Early Titled Tuesday Blitz | February 8 2022"]
[White "Golsta, Madara"]
[Black "Fernandez, Michael"]
[WhiteFideId "11607386"]
[BlackFideId "5803560"]
[WhiteElo "1997"]
[BlackElo "2110"]
[Result "1-0"]
[Round "08"]
[TimeControl "180+1"]
[Date "2022.02.08"]
[WhiteClock "0:00:19"]
[BlackClock "0:00:03"]

1. c4 {[%clk 0:03:00]}  c6 {[%clk 0:02:58]} 2. d4 {[%clk 0:02:59]}  d5 {[%clk 0:02:59]} 3. Nc3 {[%clk 0:02:56]}  Nf6 {[%clk 0:02:59]} 4. Nf3 {[%clk 0:02:52]}  e6 {[%clk 0:02:59]} 5. e3 {[%clk 0:02:51]}  Nbd7 {[%clk 0:02:59]} 6. Bd3 {[%clk 0:02:50]}  dxc4 {[%clk 0:02:58]} 7. Bxc4 {[%clk 0:02:51]}  b5 {[%clk 0:02:58]} 8. Bd3 {[%clk 0:02:51]}  Bd6 {[%clk 0:02:59]} 9. O-O {[%clk 0:02:42]}  O-O {[%clk 0:02:59]} 10. e4 {[%clk 0:02:17]}  e5 {[%clk 0:02:58]} 11. Bg5 {[%clk 0:02:17]}  h6 {[%clk 0:02:40]} 12. Bh4 {[%clk 0:02:14]}  exd4 {[%clk 0:02:23]} 13. Nxd4 {[%clk 0:02:03]}  Qc7 {[%clk 0:02:23]} 14. Bg3 {[%clk 0:01:55]}  a6 {[%clk 0:02:00]} 15. Nf5 {[%clk 0:01:52]}  Bxg3 {[%clk 0:02:00]} 16. hxg3 {[%clk 0:01:51]}  Ne5 {[%clk 0:01:55]} 17. Bc2 {[%clk 0:01:50]}  Bxf5 {[%clk 0:01:27]} 18. exf5 {[%clk 0:01:49]}  Rad8 {[%clk 0:01:27]} 19. Qc1 {[%clk 0:01:39]}  c5 {[%clk 0:01:11]} 20. Qf4 {[%clk 0:01:36]}  b4 {[%clk 0:00:44]} 21. Ne4 {[%clk 0:01:31]}  Nd5 {[%clk 0:00:34]} 22. Qh4 {[%clk 0:01:26]}  f6 {[%clk 0:00:34]} 23. Bb3 {[%clk 0:01:03]}  Kh8 {[%clk 0:00:34]} 24. Rac1 {[%clk 0:00:52]}  Qe7 {[%clk 0:00:23]} 25. Nxc5 {[%clk 0:00:44]}  Rd6 {[%clk 0:00:20]} 26. Ne6 {[%clk 0:00:41]}  Rb8 {[%clk 0:00:20]} 27. Rfd1 {[%clk 0:00:36]}  Nb6 {[%clk 0:00:13]} 28. Rxd6 {[%clk 0:00:32]}  Qxd6 {[%clk 0:00:14]} 29. Qh5 {[%clk 0:00:28]}  Qd2 {[%clk 0:00:13]} 30. Rd1 {[%clk 0:00:26]}  Qxb2 {[%clk 0:00:10]} 31. f4 {[%clk 0:00:20]}  Nec4 {[%clk 0:00:05]} 32. Qf7 {[%clk 0:00:20]}  Rg8 {[%clk 0:00:05]} 33. Rd8 {[%clk 0:00:19]}  Qc1+ {[%clk 0:00:03]} 34. Kh2 {[%clk 0:00:19]} 1-0


[Site "https://www.chess.com"]

[Event "Early Titled Tuesday Blitz | February 8 2022"]
[White "Gontcharov, Vladislav"]
[Black "Hoffmann, Asa"]
[WhiteFideId "4123492"]
[BlackFideId "2001470"]
[WhiteElo "2503"]
[BlackElo "2117"]
[Result "0-1"]
[Round "08"]
[TimeControl "180+1"]
[Date "2022.02.08"]
[WhiteClock "0:00:02"]
[BlackClock "0:00:25"]

1. e4 {[%clk 0:02:43]}  d6 {[%clk 0:02:59]} 2. d4 {[%clk 0:02:39]}  Nf6 {[%clk 0:02:58]} 3. Nc3 {[%clk 0:02:40]}  c6 {[%clk 0:02:58]} 4. h3 {[%clk 0:02:38]}  e5 {[%clk 0:02:58]} 5. Nf3 {[%clk 0:02:37]}  Qc7 {[%clk 0:02:57]} 6. Be2 {[%clk 0:02:35]}  Be7 {[%clk 0:02:57]} 7. O-O {[%clk 0:02:34]}  Nbd7 {[%clk 0:02:57]} 8. Be3 {[%clk 0:02:32]}  Nf8 {[%clk 0:02:56]} 9. a4 {[%clk 0:02:28]}  Ng6 {[%clk 0:02:56]} 10. Qd2 {[%clk 0:02:28]}  a5 {[%clk 0:02:53]} 11. d5 {[%clk 0:02:24]}  O-O {[%clk 0:02:51]} 12. Rfd1 {[%clk 0:02:03]}  Bd7 {[%clk 0:02:49]} 13. Bd3 {[%clk 0:01:55]}  Nh5 {[%clk 0:02:42]} 14. Ne2 {[%clk 0:01:47]}  cxd5 {[%clk 0:02:39]} 15. exd5 {[%clk 0:01:46]}  f5 {[%clk 0:02:38]} 16. Nxe5 {[%clk 0:01:10]}  Nxe5 {[%clk 0:02:32]} 17. Bb5 {[%clk 0:01:10]}  Bxb5 {[%clk 0:02:23]} 18. axb5 {[%clk 0:01:11]}  Nc4 {[%clk 0:02:17]} 19. Qc3 {[%clk 0:01:11]}  Rac8 {[%clk 0:02:13]} 20. Bd4 {[%clk 0:01:07]}  Ne5 {[%clk 0:02:06]} 21. Bxe5 {[%clk 0:01:06]}  dxe5 {[%clk 0:02:04]} 22. Qxc7 {[%clk 0:00:59]}  Rxc7 {[%clk 0:02:04]} 23. c3 {[%clk 0:00:59]}  Bd6 {[%clk 0:01:42]} 24. Rxa5 {[%clk 0:00:58]}  b6 {[%clk 0:01:40]} 25. Ra6 {[%clk 0:00:57]}  Rb8 {[%clk 0:01:37]} 26. b3 {[%clk 0:00:54]}  Nf6 {[%clk 0:01:37]} 27. c4 {[%clk 0:00:54]}  Nd7 {[%clk 0:01:30]} 28. Nc1 {[%clk 0:00:49]}  Nc5 {[%clk 0:01:29]} 29. Ra2 {[%clk 0:00:49]}  e4 {[%clk 0:01:28]} 30. g3 {[%clk 0:00:46]}  Rbb7 {[%clk 0:01:26]} 31. Kf1 {[%clk 0:00:43]}  Ra7 {[%clk 0:01:26]} 32. Rdd2 {[%clk 0:00:44]}  Kf7 {[%clk 0:01:25]} 33. Ke2 {[%clk 0:00:43]}  f4 {[%clk 0:01:22]} 34. Rxa7 {[%clk 0:00:29]}  Rxa7 {[%clk 0:01:21]} 35. b4 {[%clk 0:00:29]}  Na4 {[%clk 0:01:12]} 36. Na2 {[%clk 0:00:26]}  Rc7 {[%clk 0:01:04]} 37. Rd4 {[%clk 0:00:22]}  fxg3 {[%clk 0:01:01]} 38. fxg3 {[%clk 0:00:21]}  Nb2 {[%clk 0:00:52]} 39. c5 {[%clk 0:00:18]}  bxc5 {[%clk 0:00:50]} 40. bxc5 {[%clk 0:00:18]}  Bxc5 {[%clk 0:00:46]} 41. Rxe4 {[%clk 0:00:18]}  Bd6 {[%clk 0:00:45]} 42. g4 {[%clk 0:00:16]}  Rc2+ {[%clk 0:00:44]} 43. Kf3 {[%clk 0:00:15]}  Nd3 {[%clk 0:00:42]} 44. Re2 {[%clk 0:00:14]}  Ne5+ {[%clk 0:00:40]} 45. Kf2 {[%clk 0:00:14]}  Bc5+ {[%clk 0:00:40]} 46. Kf1 {[%clk 0:00:14]}  Rxe2 {[%clk 0:00:35]} 47. Kxe2 {[%clk 0:00:14]}  Ke7 {[%clk 0:00:34]} 48. Nc3 {[%clk 0:00:13]}  Kd6 {[%clk 0:00:33]} 49. Ne4+ {[%clk 0:00:10]}  Kxd5 {[%clk 0:00:33]} 50. Ng5 {[%clk 0:00:10]}  h6 {[%clk 0:00:33]} 51. Nh7 {[%clk 0:00:10]}  Kc4 {[%clk 0:00:31]} 52. h4 {[%clk 0:00:10]}  Kxb5 {[%clk 0:00:31]} 53. g5 {[%clk 0:00:10]}  hxg5 {[%clk 0:00:30]} 54. hxg5 {[%clk 0:00:10]}  Kc6 {[%clk 0:00:30]} 55. g6 {[%clk 0:00:08]}  Kd5 {[%clk 0:00:30]} 56. Ng5 {[%clk 0:00:07]}  Be7 {[%clk 0:00:30]} 57. Nh3 {[%clk 0:00:07]}  Ke6 {[%clk 0:00:30]} 58. Ke3 {[%clk 0:00:06]}  Kf5 {[%clk 0:00:29]} 59. Kf2 {[%clk 0:00:04]}  Nxg6 {[%clk 0:00:29]} 60. Kg3 {[%clk 0:00:03]}  Bd6+ {[%clk 0:00:29]} 61. Kf3 {[%clk 0:00:04]}  Nh4+ {[%clk 0:00:27]} 62. Ke2 {[%clk 0:00:02]}  Kg4 {[%clk 0:00:27]} 63. Nf2+ {[%clk 0:00:02]}  Kf4 {[%clk 0:00:25]} 64. Nd3+ {[%clk 0:00:02]}  Kg3 {[%clk 0:00:25]} 0-1


[Site "https://www.chess.com"]

[Event "Early Titled Tuesday Blitz | February 8 2022"]
[White "Gurevich, Dmitry"]
[Black "Gombocz, Ferenc Jr."]
[WhiteFideId "2000407"]
[BlackFideId "775029"]
[WhiteElo "2506"]
[BlackElo "1913"]
[Result "1-0"]
[Round "08"]
[TimeControl "180+1"]
[Date "2022.02.08"]
[WhiteClock "0:00:09"]
[BlackClock "0:00:05"]

1. d4 {[%clk 0:02:57]}  d5 {[%clk 0:02:59]} 2. c4 {[%clk 0:02:57]}  c6 {[%clk 0:02:59]} 3. Nf3 {[%clk 0:02:54]}  Nf6 {[%clk 0:03:00]} 4. Nc3 {[%clk 0:02:54]}  a6 {[%clk 0:02:58]} 5. a4 {[%clk 0:02:49]}  a5 {[%clk 0:02:57]} 6. Bg5 {[%clk 0:02:48]}  dxc4 {[%clk 0:02:53]} 7. e3 {[%clk 0:02:43]}  Na6 {[%clk 0:02:50]} 8. Bxc4 {[%clk 0:02:41]}  Nb4 {[%clk 0:02:50]} 9. O-O {[%clk 0:02:39]}  Bf5 {[%clk 0:02:46]} 10. Ne5 {[%clk 0:02:37]}  e6 {[%clk 0:02:41]} 11. e4 {[%clk 0:02:32]}  Bg6 {[%clk 0:02:38]} 12. f4 {[%clk 0:02:25]}  Be7 {[%clk 0:02:29]} 13. f5 {[%clk 0:02:20]}  Bh5 {[%clk 0:02:25]} 14. g4 {[%clk 0:02:12]}  Nxg4 {[%clk 0:02:18]} 15. Bxe7 {[%clk 0:02:11]}  Qxe7 {[%clk 0:02:16]} 16. Nxg4 {[%clk 0:01:37]}  Qh4 {[%clk 0:02:15]} 17. Be2 {[%clk 0:01:32]}  exf5 {[%clk 0:02:04]} 18. Rxf5 {[%clk 0:01:25]}  O-O-O {[%clk 0:02:02]} 19. Qe1 {[%clk 0:01:09]}  Qxe1+ {[%clk 0:01:55]} 20. Rxe1 {[%clk 0:01:08]}  Nc2 {[%clk 0:01:55]} 21. Rc1 {[%clk 0:00:55]}  g6 {[%clk 0:01:50]} 22. Rxh5 {[%clk 0:00:42]}  gxh5 {[%clk 0:01:48]} 23. Ne5 {[%clk 0:00:42]}  Nxd4 {[%clk 0:01:41]} 24. Bc4 {[%clk 0:00:35]}  Rhg8+ {[%clk 0:01:37]} 25. Kf2 {[%clk 0:00:34]}  Rg7 {[%clk 0:01:26]} 26. Ke3 {[%clk 0:00:32]}  c5 {[%clk 0:01:02]} 27. Nd5 {[%clk 0:00:25]}  Re8 {[%clk 0:00:51]} 28. Nd3 {[%clk 0:00:20]}  f5 {[%clk 0:00:44]} 29. e5 {[%clk 0:00:19]}  Rg2 {[%clk 0:00:36]} 30. Nf6 {[%clk 0:00:14]}  Re7 {[%clk 0:00:22]} 31. Kf4 {[%clk 0:00:11]}  Ne2+ {[%clk 0:00:18]} 32. Kf3 {[%clk 0:00:11]}  Nxc1 {[%clk 0:00:17]} 33. Kxg2 {[%clk 0:00:11]}  Nxd3 {[%clk 0:00:17]} 34. Bxd3 {[%clk 0:00:11]}  Rxe5 {[%clk 0:00:16]} 35. Kf3 {[%clk 0:00:11]}  h4 {[%clk 0:00:12]} 36. b3 {[%clk 0:00:10]}  Kd8 {[%clk 0:00:10]} 37. Nh5 {[%clk 0:00:09]}  Re1 {[%clk 0:00:09]} 38. Nf4 {[%clk 0:00:08]}  Rh1 {[%clk 0:00:07]} 39. h3 {[%clk 0:00:08]}  Kc7 {[%clk 0:00:05]} 40. Bc4 {[%clk 0:00:08]}  Rb1 {[%clk 0:00:03]} 41. Nd5+ {[%clk 0:00:07]}  Kd6 {[%clk 0:00:03]} 42. Ne3 {[%clk 0:00:07]}  Rc1 {[%clk 0:00:02]} 43. Nxf5+ {[%clk 0:00:06]}  Ke5 {[%clk 0:00:03]} 44. Ne3 {[%clk 0:00:06]}  Rc3 {[%clk 0:00:03]} 45. Ke2 {[%clk 0:00:06]}  Ke4 {[%clk 0:00:02]} 46. Ng4 {[%clk 0:00:06]}  Rxh3 {[%clk 0:00:02]} 47. Nf2+ {[%clk 0:00:06]}  Kd4 {[%clk 0:00:01]} 48. Nxh3 {[%clk 0:00:06]}  Kc3 {[%clk 0:00:02]} 49. Ng5 {[%clk 0:00:06]}  h6 {[%clk 0:00:02]} 50. Nh3 {[%clk 0:00:06]}  h5 {[%clk 0:00:02]} 51. Kf3 {[%clk 0:00:06]}  b6 {[%clk 0:00:03]} 52. Nf4 {[%clk 0:00:05]}  Kd4 {[%clk 0:00:02]} 53. Nxh5 {[%clk 0:00:05]}  Ke5 {[%clk 0:00:02]} 54. Kg4 {[%clk 0:00:04]}  Ke4 {[%clk 0:00:02]} 55. Kxh4 {[%clk 0:00:05]}  Kf3 {[%clk 0:00:02]} 56. Ng7 {[%clk 0:00:05]}  Ke4 {[%clk 0:00:02]} 57. Ne6 {[%clk 0:00:05]}  Ke5 {[%clk 0:00:02]} 58. Nc7 {[%clk 0:00:06]}  Kd6 {[%clk 0:00:02]} 59. Na8 {[%clk 0:00:06]}  Kc6 {[%clk 0:00:02]} 60. Nxb6 {[%clk 0:00:06]}  Kxb6 {[%clk 0:00:02]} 61. Kg5 {[%clk 0:00:07]}  Kb7 {[%clk 0:00:03]} 62. Kf6 {[%clk 0:00:07]}  Kc6 {[%clk 0:00:04]} 63. Ke6 {[%clk 0:00:08]}  Kc7 {[%clk 0:00:04]} 64. Kd5 {[%clk 0:00:08]}  Kb6 {[%clk 0:00:05]} 65. Kd6 {[%clk 0:00:08]}  Kb7 {[%clk 0:00:06]} 66. Kxc5 {[%clk 0:00:09]}  Ka7 {[%clk 0:00:05]} 67. Kb5 {[%clk 0:00:09]} 1-0


[Site "https://www.chess.com"]